[Event "Late-Titled-Tuesday-Blitz-February-27-2024"]
[Site "Chess.com"]
[Date "2024.02.27"]
[Round "6"]
[White "stollenmonster"]
[Black "vi_pranav"]
[Result "0-1"]
[WhiteElo "2867"]
[BlackElo "3111"]
[TimeControl "180+1"]
[EndTime "15:07:17 PST"]
[Termination "vi_pranav won by resignation"]

1. e4 {[%clk 0:03:00.9]} 1... e5 {[%clk 0:03:00]} 2. Nc3 {[%clk 0:03:00.7]} 2...
Nc6 {[%clk 0:02:58.9]} 3. g3 {[%clk 0:03:01.6]} 3... Nf6 {[%clk 0:02:58.8]} 4.
Bg2 {[%clk 0:03:02]} 4... Bc5 {[%clk 0:02:58.9]} 5. h3 {[%clk 0:03:02.1]} 5...
a6 {[%clk 0:02:58.8]} 6. Nge2 {[%clk 0:03:02.9]} 6... d6 {[%clk 0:02:58.8]} 7.
d3 {[%clk 0:03:03.6]} 7... h6 {[%clk 0:02:58.6]} 8. O-O {[%clk 0:03:03.3]} 8...
g5 {[%clk 0:02:36.5]} 9. Nd5 {[%clk 0:03:00.4]} 9... Be6 {[%clk 0:02:28.1]} 10.
c3 {[%clk 0:03:00.1]} 10... Ba7 {[%clk 0:02:18.9]} 11. d4 {[%clk 0:03:00]} 11...
exd4 {[%clk 0:02:00.2]} 12. cxd4 {[%clk 0:03:00.9]} 12... Bxd5 {[%clk
0:02:00.4]} 13. exd5 {[%clk 0:03:00.2]} 13... Ne7 {[%clk 0:02:01.1]} 14. Qb3
{[%clk 0:02:51.1]} 14... Bb6 {[%clk 0:01:46.8]} 15. a4 {[%clk 0:02:48.6]} 15...
a5 {[%clk 0:01:35.8]} 16. Re1 {[%clk 0:02:34.2]} 16... Kf8 {[%clk 0:01:35.6]}
17. Qd3 {[%clk 0:02:22.1]} 17... Qd7 {[%clk 0:01:35.5]} 18. Nc3 {[%clk
0:02:19.8]} 18... Qf5 {[%clk 0:01:30]} 19. Qc4 {[%clk 0:02:14.5]} 19... Ng6
{[%clk 0:01:27.5]} 20. Re3 {[%clk 0:01:53.7]} 20... Kg7 {[%clk 0:01:18.5]} 21.
Bd2 {[%clk 0:01:38.6]} 21... Rae8 {[%clk 0:01:17.4]} 22. Rf1 {[%clk 0:01:37.5]}
22... g4 {[%clk 0:01:04.1]} 23. h4 {[%clk 0:01:36.6]} 23... Qc2 {[%clk 0:00:59]}
24. Bc1 {[%clk 0:01:35.9]} 24... Qf5 {[%clk 0:00:49.3]} 25. Rfe1 {[%clk
0:01:25.1]} 25... Rxe3 {[%clk 0:00:47.5]} 26. fxe3 {[%clk 0:01:26]} 26... Re8
{[%clk 0:00:47.5]} 27. e4 {[%clk 0:01:20]} 27... Qe5 {[%clk 0:00:42]} 28. Ne2
{[%clk 0:01:01.4]} 28... Nxe4 {[%clk 0:00:26.7]} 29. Be3 {[%clk 0:00:37.7]}
29... Qf6 {[%clk 0:00:23]} 30. Qd3 {[%clk 0:00:36.7]} 30... Nc5 {[%clk
0:00:10.1]} 31. Qa3 {[%clk 0:00:16.3]} 31... Na6 {[%clk 0:00:06.5]} 32. Qd3
{[%clk 0:00:15.5]} 32... Nb4 {[%clk 0:00:06.6]} 33. Qd2 {[%clk 0:00:14.8]} 33...
Rxe3 {[%clk 0:00:06.6]} 34. Qxe3 {[%clk 0:00:15.7]} 34... Nc2 {[%clk 0:00:07.3]}
35. Qd2 {[%clk 0:00:12.6]} 35... Nxe1 {[%clk 0:00:07.6]} 36. Qxe1 {[%clk
0:00:13.5]} 36... Bxd4+ {[%clk 0:00:08.3]} 37. Kh2 {[%clk 0:00:12.5]} 37... Be5
{[%clk 0:00:07.2]} 38. h5 {[%clk 0:00:07.2]} 38... Nh4 {[%clk 0:00:05.9]} 39.
Ng1 {[%clk 0:00:03.8]} 39... Nf5 {[%clk 0:00:04.8]} 40. Ne2 {[%clk 0:00:04]}
40... Qh4+ {[%clk 0:00:04.4]} 41. Kg1 {[%clk 0:00:03.7]} 41... Nxg3 {[%clk
0:00:04.8]} 42. Nxg3 {[%clk 0:00:03.9]} 42... Bxg3 {[%clk 0:00:05.2]} 43. Qe4
{[%clk 0:00:03.3]} 43... Be5 {[%clk 0:00:04.2]} 44. Qf5 {[%clk 0:00:01.6]} 44...
Qg3 {[%clk 0:00:03.6]} 45. Kf1 {[%clk 0:00:01]} 45... Bd4 {[%clk 0:00:02.3]} 46.
Ke2 {[%clk 0:00:01.9]} 46... Qe3+ {[%clk 0:00:02.1]} 47. Kd1 {[%clk 0:00:02.1]}
47... Qg1+ {[%clk 0:00:02.7]} 48. Bf1 {[%clk 0:00:02.2]} 48... Be5 {[%clk
0:00:02.6]} 49. Kc2 {[%clk 0:00:02.1]} 49... Qh2+ {[%clk 0:00:02.6]} 50. Kd1
{[%clk 0:00:01.6]} 50... Qxb2 {[%clk 0:00:03]} 51. Bd3 {[%clk 0:00:02.3]} 51...
Qa1+ {[%clk 0:00:02.5]} 52. Ke2 {[%clk 0:00:02.9]} 52... Qb2+ {[%clk 0:00:02.9]}
53. Kd1 {[%clk 0:00:03.1]} 53... Qa1+ {[%clk 0:00:02.8]} 54. Ke2 {[%clk
0:00:03.6]} 54... Qd4 {[%clk 0:00:02.5]} 55. Qh7+ {[%clk 0:00:03.4]} 55... Kf8
{[%clk 0:00:02.8]} 56. Qxh6+ {[%clk 0:00:04.1]} 56... Bg7 {[%clk 0:00:03.3]} 57.
Qg5 {[%clk 0:00:04.3]} 57... Qe5+ {[%clk 0:00:03]} 58. Qxe5 {[%clk 0:00:04.1]}
58... Bxe5 {[%clk 0:00:03.9]} 59. Bf5 {[%clk 0:00:04.4]} 59... g3 {[%clk
0:00:03.9]} 60. Bc8 {[%clk 0:00:05.1]} 60... b6 {[%clk 0:00:04.2]} 61. Kf3
{[%clk 0:00:05.8]} 61... Kg7 {[%clk 0:00:04.8]} 62. Bd7 {[%clk 0:00:06.2]} 62...
Kh6 {[%clk 0:00:05.2]} 63. Be8 {[%clk 0:00:06.4]} 63... Kxh5 {[%clk 0:00:04]}
64. Bxf7+ {[%clk 0:00:06.6]} 64... Kg5 {[%clk 0:00:04.9]} 65. Be6 {[%clk
0:00:06.8]} 65... b5 {[%clk 0:00:04.6]} 66. axb5 {[%clk 0:00:06.7]} 66... a4
{[%clk 0:00:05.1]} 67. Bh3 {[%clk 0:00:06]} 67... a3 {[%clk 0:00:05.3]} 0-1

[Event "Late-Titled-Tuesday-Blitz-February-27-2024"]
[Site "Chess.com"]
[Date "2024.02.27"]
[Round "6"]
[White "Arystanner"]
[Black "Sanan_Sjugirov"]
[Result "1/2-1/2"]
[WhiteElo "2797"]
[BlackElo "2968"]
[TimeControl "180+1"]
[EndTime "15:07:17 PST"]
[Termination "Game drawn by repetition"]

1. d4 {[%clk 0:02:55.1]} 1... Nf6 {[%clk 0:02:59.3]} 2. c4 {[%clk 0:02:55.1]}
2... e6 {[%clk 0:03:00]} 3. Nc3 {[%clk 0:02:55.8]} 3... Bb4 {[%clk 0:03:00.2]}
4. Nf3 {[%clk 0:02:56.4]} 4... b6 {[%clk 0:03:00.3]} 5. e3 {[%clk 0:02:55.8]}
5... Bb7 {[%clk 0:03:00.5]} 6. Bd3 {[%clk 0:02:56.2]} 6... Ne4 {[%clk
0:02:55.1]} 7. O-O {[%clk 0:02:55.8]} 7... Bxc3 {[%clk 0:02:54.8]} 8. bxc3
{[%clk 0:02:55.5]} 8... O-O {[%clk 0:02:55.2]} 9. Nd2 {[%clk 0:02:54.9]} 9...
Nxd2 {[%clk 0:02:53.1]} 10. Bxd2 {[%clk 0:02:54.4]} 10... f5 {[%clk 0:02:50.9]}
11. f3 {[%clk 0:02:54.5]} 11... Nc6 {[%clk 0:02:38.1]} 12. Rb1 {[%clk
0:02:53.8]} 12... Qh4 {[%clk 0:02:36.1]} 13. c5 {[%clk 0:02:49.9]} 13... Rae8
{[%clk 0:02:26.5]} 14. Qe1 {[%clk 0:02:47.1]} 14... Qe7 {[%clk 0:02:24.9]} 15.
Qg3 {[%clk 0:02:45.5]} 15... e5 {[%clk 0:02:15.8]} 16. cxb6 {[%clk 0:02:13.8]}
16... axb6 {[%clk 0:02:10.6]} 17. Rfe1 {[%clk 0:02:02.6]} 17... d6 {[%clk
0:02:08.8]} 18. Bc4+ {[%clk 0:02:01.1]} 18... Kh8 {[%clk 0:02:08.6]} 19. Bd5
{[%clk 0:02:01.4]} 19... Na5 {[%clk 0:02:05.8]} 20. Bxb7 {[%clk 0:01:57.1]}
20... Nxb7 {[%clk 0:02:06.7]} 21. c4 {[%clk 0:01:58]} 21... Qe6 {[%clk
0:01:58.9]} 22. Rbc1 {[%clk 0:01:43.9]} 22... Ra8 {[%clk 0:01:53.4]} 23. Bc3
{[%clk 0:01:39.5]} 23... exd4 {[%clk 0:01:31.1]} 24. exd4 {[%clk 0:01:39.5]}
24... Qf7 {[%clk 0:01:30.4]} 25. Rc2 {[%clk 0:01:20]} 25... Rfe8 {[%clk
0:01:29.5]} 26. Rxe8+ {[%clk 0:01:12.8]} 26... Rxe8 {[%clk 0:01:30.4]} 27. d5
{[%clk 0:01:13]} 27... Nc5 {[%clk 0:01:28.3]} 28. h3 {[%clk 0:01:05.8]} 28...
Kg8 {[%clk 0:01:25.9]} 29. Bd4 {[%clk 0:01:00]} 29... f4 {[%clk 0:01:22.4]} 30.
Qg4 {[%clk 0:00:54.8]} 30... Nd3 {[%clk 0:01:09.5]} 31. Kh2 {[%clk 0:00:54]}
31... h6 {[%clk 0:01:04]} 32. Rc3 {[%clk 0:00:52.3]} 32... Nb4 {[%clk
0:00:36.2]} 33. a3 {[%clk 0:00:46.1]} 33... Na6 {[%clk 0:00:36.6]} 34. Rc2
{[%clk 0:00:37.6]} 34... Nb8 {[%clk 0:00:36.3]} 35. a4 {[%clk 0:00:34.5]} 35...
Nd7 {[%clk 0:00:35.9]} 36. Ra2 {[%clk 0:00:34.3]} 36... Ne5 {[%clk 0:00:06.8]}
37. Bxe5 {[%clk 0:00:34.6]} 37... Rxe5 {[%clk 0:00:07.7]} 38. a5 {[%clk
0:00:33.6]} 38... bxa5 {[%clk 0:00:08.5]} 39. Rxa5 {[%clk 0:00:34.2]} 39... Kh7
{[%clk 0:00:08.5]} 40. Ra8 {[%clk 0:00:33.9]} 40... Rf5 {[%clk 0:00:06.1]} 41.
Rc8 {[%clk 0:00:30.6]} 41... Rg5 {[%clk 0:00:04.4]} 42. Qe6 {[%clk 0:00:27.2]}
42... Qxe6 {[%clk 0:00:02.7]} 43. dxe6 {[%clk 0:00:27.4]} 43... Re5 {[%clk
0:00:03.4]} 44. Rxc7 {[%clk 0:00:20.9]} 44... Rxe6 {[%clk 0:00:03.9]} 45. Rf7
{[%clk 0:00:21.6]} 45... Re2 {[%clk 0:00:01.2]} 46. Rxf4 {[%clk 0:00:21.5]}
46... Rd2 {[%clk 0:00:01.9]} 47. Kg3 {[%clk 0:00:21.4]} 47... d5 {[%clk
0:00:02]} 48. cxd5 {[%clk 0:00:16.1]} 48... Rxd5 {[%clk 0:00:02.9]} 49. h4
{[%clk 0:00:15.7]} 49... Rc5 {[%clk 0:00:03.2]} 50. Rf7 {[%clk 0:00:16]} 50...
Ra5 {[%clk 0:00:03.7]} 51. Rb7 {[%clk 0:00:15.9]} 51... Rc5 {[%clk 0:00:03.8]}
52. Kh3 {[%clk 0:00:14.6]} 52... Rd5 {[%clk 0:00:04.2]} 53. g4 {[%clk
0:00:13.1]} 53... Rd3 {[%clk 0:00:04.5]} 54. Kg3 {[%clk 0:00:13.4]} 54... Rc3
{[%clk 0:00:04.9]} 55. Rb6 {[%clk 0:00:13.7]} 55... Rd3 {[%clk 0:00:05.1]} 56.
g5 {[%clk 0:00:13]} 56... hxg5 {[%clk 0:00:05.3]} 57. hxg5 {[%clk 0:00:13.8]}
57... Rd1 {[%clk 0:00:05.5]} 58. Kg4 {[%clk 0:00:14.1]} 58... Rd4+ {[%clk
0:00:04]} 59. Kh5 {[%clk 0:00:11.2]} 59... Rd5 {[%clk 0:00:04.1]} 60. f4 {[%clk
0:00:11]} 60... Ra5 {[%clk 0:00:04.2]} 61. Re6 {[%clk 0:00:09.9]} 61... Rb5
{[%clk 0:00:04.1]} 62. Re5 {[%clk 0:00:09.4]} 62... Rb6 {[%clk 0:00:03.4]} 63.
f5 {[%clk 0:00:08.9]} 63... g6+ {[%clk 0:00:03.8]} 64. fxg6+ {[%clk 0:00:08]}
64... Kg7 {[%clk 0:00:04.1]} 65. Re7+ {[%clk 0:00:08.2]} 65... Kg8 {[%clk
0:00:04.4]} 66. Ra7 {[%clk 0:00:08.4]} 66... Rb1 {[%clk 0:00:03.9]} 67. g7
{[%clk 0:00:08.8]} 67... Rb6 {[%clk 0:00:03.7]} 68. g6 {[%clk 0:00:06.8]} 68...
Rb1 {[%clk 0:00:03.6]} 69. Kh6 {[%clk 0:00:06.4]} 69... Rh1+ {[%clk 0:00:03.5]}
70. Kg5 {[%clk 0:00:07.1]} 70... Rg1+ {[%clk 0:00:04.4]} 71. Kh6 {[%clk
0:00:07.8]} 71... Rh1+ {[%clk 0:00:04.8]} 72. Kg5 {[%clk 0:00:08.6]} 72... Rg1+
{[%clk 0:00:05.7]} 73. Kh6 {[%clk 0:00:09.3]} 73... Rh1+ {[%clk 0:00:06]}
1/2-1/2

[Event "Late-Titled-Tuesday-Blitz-February-27-2024"]
[Site "Chess.com"]
[Date "2024.02.27"]
[Round "6"]
[White "Jospem"]
[Black "js20000"]
[Result "0-1"]
[WhiteElo "3061"]
[BlackElo "2848"]
[TimeControl "180+1"]
[EndTime "15:07:23 PST"]
[Termination "js20000 won on time"]

1. e4 {[%clk 0:03:00.9]} 1... e6 {[%clk 0:02:59]} 2. d4 {[%clk 0:03:00.8]} 2...
d5 {[%clk 0:02:59.3]} 3. exd5 {[%clk 0:03:01.7]} 3... exd5 {[%clk 0:02:59.5]} 4.
Nf3 {[%clk 0:03:02.2]} 4... Nf6 {[%clk 0:02:58.7]} 5. Bd3 {[%clk 0:03:02.5]}
5... Bd6 {[%clk 0:02:59]} 6. O-O {[%clk 0:03:02.8]} 6... O-O {[%clk 0:02:58.8]}
7. Bg5 {[%clk 0:03:02]} 7... Bg4 {[%clk 0:02:58.2]} 8. Nbd2 {[%clk 0:03:01.1]}
8... Nbd7 {[%clk 0:02:56.3]} 9. c4 {[%clk 0:03:01.3]} 9... h6 {[%clk 0:02:49]}
10. Bh4 {[%clk 0:03:00.5]} 10... dxc4 {[%clk 0:02:48.2]} 11. Nxc4 {[%clk
0:03:00.2]} 11... Be7 {[%clk 0:02:47.5]} 12. Re1 {[%clk 0:02:58.9]} 12... Nd5
{[%clk 0:02:44.6]} 13. Bg3 {[%clk 0:02:53.2]} 13... Bf6 {[%clk 0:02:39.3]} 14.
Be4 {[%clk 0:02:50]} 14... N7b6 {[%clk 0:02:34]} 15. Nce5 {[%clk 0:02:48.6]}
15... Be6 {[%clk 0:02:27.3]} 16. a3 {[%clk 0:02:45.6]} 16... c6 {[%clk
0:02:16.4]} 17. Bc2 {[%clk 0:02:42]} 17... Ne7 {[%clk 0:02:16]} 18. h3 {[%clk
0:02:35.7]} 18... Bf5 {[%clk 0:02:15.5]} 19. Bb3 {[%clk 0:02:35.1]} 19... Nbd5
{[%clk 0:02:13.8]} 20. Ng4 {[%clk 0:02:35.3]} 20... Bh7 {[%clk 0:02:10.1]} 21.
Nxf6+ {[%clk 0:02:24.2]} 21... Nxf6 {[%clk 0:02:09.8]} 22. Be5 {[%clk
0:02:23.1]} 22... Nfd5 {[%clk 0:02:08.7]} 23. Bc4 {[%clk 0:02:11.6]} 23... Qd7
{[%clk 0:02:08.6]} 24. Qb3 {[%clk 0:02:10.4]} 24... Rae8 {[%clk 0:02:08.5]} 25.
a4 {[%clk 0:02:09.9]} 25... f6 {[%clk 0:02:00]} 26. Bg3 {[%clk 0:02:06.1]} 26...
Kh8 {[%clk 0:02:00.3]} 27. a5 {[%clk 0:02:04.7]} 27... a6 {[%clk 0:02:00.1]} 28.
Re2 {[%clk 0:02:00.1]} 28... Nf5 {[%clk 0:01:59.6]} 29. Rae1 {[%clk 0:01:56.7]}
29... Rxe2 {[%clk 0:01:54.8]} 30. Rxe2 {[%clk 0:01:57.6]} 30... Nxg3 {[%clk
0:01:53.4]} 31. fxg3 {[%clk 0:01:58.5]} 31... Bg8 {[%clk 0:01:53.6]} 32. Nh4
{[%clk 0:01:51.8]} 32... Bf7 {[%clk 0:01:46.6]} 33. Bxd5 {[%clk 0:01:52]} 33...
cxd5 {[%clk 0:01:39.3]} 34. g4 {[%clk 0:01:41.7]} 34... Re8 {[%clk 0:01:37.5]}
35. Rxe8+ {[%clk 0:01:35.1]} 35... Bxe8 {[%clk 0:01:31.4]} 36. Qb4 {[%clk
0:01:29.4]} 36... Kg8 {[%clk 0:01:27.7]} 37. Nf5 {[%clk 0:01:29.5]} 37... Bg6
{[%clk 0:01:26.3]} 38. Nd6 {[%clk 0:00:55]} 38... Qe7 {[%clk 0:01:17.5]} 39. Kh2
{[%clk 0:00:45]} 39... Kh7 {[%clk 0:01:10.6]} 40. Qa3 {[%clk 0:00:38.6]} 40...
Qe2 {[%clk 0:00:59.5]} 41. Nxb7 {[%clk 0:00:30.8]} 41... Be4 {[%clk 0:00:58.8]}
42. Qg3 {[%clk 0:00:31.3]} 42... Qxb2 {[%clk 0:00:58.3]} 43. Nc5 {[%clk
0:00:29.1]} 43... Qxd4 {[%clk 0:00:56.8]} 44. Nxa6 {[%clk 0:00:29.6]} 44... Qa4
{[%clk 0:00:46.6]} 45. Nc5 {[%clk 0:00:29.8]} 45... Qxa5 {[%clk 0:00:46.3]} 46.
Ne6 {[%clk 0:00:30.2]} 46... Qd2 {[%clk 0:00:43.1]} 47. Nc5 {[%clk 0:00:26.6]}
47... Qc2 {[%clk 0:00:32.9]} 48. Ne6 {[%clk 0:00:26.9]} 48... Qd2 {[%clk
0:00:31.6]} 49. Nc5 {[%clk 0:00:26.8]} 49... Qd4 {[%clk 0:00:28.3]} 50. Nd7
{[%clk 0:00:23.9]} 50... Qb2 {[%clk 0:00:24.6]} 51. Nc5 {[%clk 0:00:19.9]} 51...
Qe5 {[%clk 0:00:20.9]} 52. Qxe5 {[%clk 0:00:15.1]} 52... fxe5 {[%clk 0:00:21.8]}
53. Nd7 {[%clk 0:00:16]} 53... d4 {[%clk 0:00:22]} 54. Nxe5 {[%clk 0:00:16.7]}
54... d3 {[%clk 0:00:20.5]} 55. Nc4 {[%clk 0:00:17.2]} 55... Bd5 {[%clk
0:00:20.9]} 56. Nd2 {[%clk 0:00:15.9]} 56... Kg6 {[%clk 0:00:21.4]} 57. Kg1
{[%clk 0:00:14.9]} 57... Kf6 {[%clk 0:00:21.6]} 58. Kf2 {[%clk 0:00:15.3]} 58...
Ke5 {[%clk 0:00:21.9]} 59. Ke3 {[%clk 0:00:11.7]} 59... Bxg2 {[%clk 0:00:21.6]}
60. h4 {[%clk 0:00:12.3]} 60... Bh3 {[%clk 0:00:21.3]} 61. Kxd3 {[%clk
0:00:05.6]} 61... Bxg4 {[%clk 0:00:21.1]} 62. Ke3 {[%clk 0:00:06.5]} 62... Kf5
{[%clk 0:00:21.1]} 63. Ne4 {[%clk 0:00:04.8]} 63... Bd1 {[%clk 0:00:20.7]} 64.
Nf2 {[%clk 0:00:04.4]} 64... Bh5 {[%clk 0:00:20.6]} 65. Nd3 {[%clk 0:00:01.2]}
65... Kg4 {[%clk 0:00:20.5]} 66. Nf4 {[%clk 0:00:01.9]} 66... Bf7 {[%clk
0:00:20.7]} 67. Nd3 {[%clk 0:00:02]} 67... Kxh4 {[%clk 0:00:20.5]} 68. Kf4
{[%clk 0:00:02.9]} 68... g5+ {[%clk 0:00:20.2]} 69. Kf5 {[%clk 0:00:03.6]} 69...
g4 {[%clk 0:00:19.7]} 70. Ne5 {[%clk 0:00:03.5]} 70... Bh5 {[%clk 0:00:19.4]}
71. Kf4 {[%clk 0:00:02.1]} 71... g3 {[%clk 0:00:19.4]} 72. Nc4 {[%clk
0:00:01.9]} 72... g2 {[%clk 0:00:18.7]} 73. Ne3 {[%clk 0:00:02.8]} 73... g1=Q
{[%clk 0:00:17.9]} 74. Nf5+ {[%clk 0:00:03.7]} 74... Kh3 {[%clk 0:00:18]} 75.
Nxh6 {[%clk 0:00:04.6]} 75... Qc1+ {[%clk 0:00:17.5]} 76. Kf5 {[%clk 0:00:04.5]}
76... Qxh6 {[%clk 0:00:18.4]} 77. Ke4 {[%clk 0:00:04.6]} 77... Qg5 {[%clk
0:00:18.3]} 78. Kd3 {[%clk 0:00:05.5]} 78... Qf4 {[%clk 0:00:18.1]} 79. Kc2
{[%clk 0:00:06]} 79... Qe3 {[%clk 0:00:18.3]} 80. Kb1 {[%clk 0:00:06.9]} 80...
Qd2 {[%clk 0:00:18.3]} 81. Ka1 {[%clk 0:00:07.8]} 81... Bf7 {[%clk 0:00:17.2]}
82. Kb1 {[%clk 0:00:08.7]} 82... Be6 {[%clk 0:00:17.7]} 0-1

[Event "Late-Titled-Tuesday-Blitz-February-27-2024"]
[Site "Chess.com"]
[Date "2024.02.27"]
[Round "6"]
[White "KATPAH"]
[Black "Sargsyan_Shant"]
[Result "0-1"]
[WhiteElo "2655"]
[BlackElo "2916"]
[TimeControl "180+1"]
[EndTime "15:07:35 PST"]
[Termination "Sargsyan_Shant won by resignation"]

1. e4 {[%clk 0:03:00.1]} 1... c6 {[%clk 0:02:54.4]} 2. c4 {[%clk 0:02:59.9]}
2... d6 {[%clk 0:02:52.4]} 3. d4 {[%clk 0:02:59.6]} 3... e5 {[%clk 0:02:52.9]}
4. dxe5 {[%clk 0:02:59.7]} 4... dxe5 {[%clk 0:02:53.2]} 5. Qxd8+ {[%clk
0:03:00.6]} 5... Kxd8 {[%clk 0:02:54.1]} 6. Nf3 {[%clk 0:03:01.5]} 6... f6
{[%clk 0:02:54.3]} 7. Nc3 {[%clk 0:03:01.7]} 7... Kc7 {[%clk 0:02:54.8]} 8. Be3
{[%clk 0:03:01.7]} 8... Be6 {[%clk 0:02:53.9]} 9. O-O-O {[%clk 0:03:01.7]} 9...
a5 {[%clk 0:02:54.2]} 10. Na4 {[%clk 0:03:00.3]} 10... Nd7 {[%clk 0:02:51.2]}
11. b3 {[%clk 0:03:00]} 11... g6 {[%clk 0:02:42.1]} 12. Be2 {[%clk 0:02:51.3]}
12... Bh6 {[%clk 0:02:42]} 13. Bxh6 {[%clk 0:02:50.9]} 13... Nxh6 {[%clk
0:02:42.9]} 14. h3 {[%clk 0:02:51.8]} 14... Nf7 {[%clk 0:02:42.2]} 15. Rd2
{[%clk 0:02:51]} 15... Rhd8 {[%clk 0:02:40.8]} 16. Rhd1 {[%clk 0:02:51.6]} 16...
b6 {[%clk 0:02:32.3]} 17. Ne1 {[%clk 0:02:46.7]} 17... Nf8 {[%clk 0:01:49.3]}
18. Nc2 {[%clk 0:02:41.5]} 18... Rxd2 {[%clk 0:01:48]} 19. Rxd2 {[%clk
0:02:42.4]} 19... Nd7 {[%clk 0:01:38.3]} 20. Ne3 {[%clk 0:02:39.8]} 20... Nd6
{[%clk 0:01:32.7]} 21. f3 {[%clk 0:02:35.7]} 21... Nb7 {[%clk 0:01:32.8]} 22.
Ng4 {[%clk 0:02:14.3]} 22... Rf8 {[%clk 0:01:30.6]} 23. Nf2 {[%clk 0:02:10.1]}
23... Ndc5 {[%clk 0:01:29.4]} 24. Nxc5 {[%clk 0:02:10.1]} 24... Nxc5 {[%clk
0:01:30.3]} 25. Nd3 {[%clk 0:02:10.8]} 25... Nd7 {[%clk 0:01:29.3]} 26. Nb2
{[%clk 0:02:09.4]} 26... Nc5 {[%clk 0:01:25.5]} 27. Nd3 {[%clk 0:02:09.2]} 27...
Na6 {[%clk 0:01:21.7]} 28. Nb2 {[%clk 0:02:01.4]} 28... h5 {[%clk 0:01:15.5]}
29. Na4 {[%clk 0:01:59.9]} 29... h4 {[%clk 0:01:14.7]} 30. Kb2 {[%clk
0:01:51.3]} 30... f5 {[%clk 0:01:14.8]} 31. Bd3 {[%clk 0:01:50.1]} 31... Rd8
{[%clk 0:01:13.3]} 32. Kc3 {[%clk 0:01:46]} 32... c5 {[%clk 0:00:59.3]} 33. a3
{[%clk 0:01:42.2]} 33... Nb8 {[%clk 0:00:59.8]} 34. Kc2 {[%clk 0:01:33.6]} 34...
Nc6 {[%clk 0:00:59.3]} 35. Nc3 {[%clk 0:01:34.3]} 35... Nd4+ {[%clk 0:00:59.9]}
36. Kb2 {[%clk 0:01:34.4]} 36... Kd6 {[%clk 0:00:54.3]} 37. Nd1 {[%clk
0:01:13.9]} 37... Ke7 {[%clk 0:00:54.7]} 38. Ne3 {[%clk 0:01:13.4]} 38... Kf6
{[%clk 0:00:55.1]} 39. Kc3 {[%clk 0:01:09.3]} 39... Kg5 {[%clk 0:00:54.8]} 40.
Rf2 {[%clk 0:00:56.1]} 40... Kf4 {[%clk 0:00:54.8]} 41. Nf1 {[%clk 0:00:56.5]}
41... Rb8 {[%clk 0:00:46.8]} 42. a4 {[%clk 0:00:56.8]} 42... Rd8 {[%clk
0:00:46.7]} 43. Bb1 {[%clk 0:00:50.2]} 43... Nc6 {[%clk 0:00:46.9]} 44. Bd3
{[%clk 0:00:48.4]} 44... Nb4 {[%clk 0:00:47.3]} 45. Bb1 {[%clk 0:00:48.6]} 45...
Rd1 {[%clk 0:00:46.8]} 46. Bc2 {[%clk 0:00:40.1]} 46... Rc1 {[%clk 0:00:43.4]}
47. Kb2 {[%clk 0:00:37.4]} 47... Rxc2+ {[%clk 0:00:43.6]} 48. Rxc2 {[%clk
0:00:37.5]} 48... Nxc2 {[%clk 0:00:44.5]} 49. Kxc2 {[%clk 0:00:37]} 49... fxe4
{[%clk 0:00:45.4]} 50. fxe4 {[%clk 0:00:37.3]} 50... Kxe4 {[%clk 0:00:46]} 51.
Kd2 {[%clk 0:00:29.7]} 51... Kf4 {[%clk 0:00:40.8]} 52. Ke2 {[%clk 0:00:28.4]}
52... Bf5 {[%clk 0:00:27.3]} 53. Ne3 {[%clk 0:00:25.8]} 53... Be4 {[%clk
0:00:27.3]} 54. Kf2 {[%clk 0:00:25.2]} 54... g5 {[%clk 0:00:26.6]} 55. Ke2
{[%clk 0:00:25.2]} 55... Kg3 {[%clk 0:00:25.7]} 56. Kf1 {[%clk 0:00:25.7]} 56...
g4 {[%clk 0:00:16.5]} 57. Kg1 {[%clk 0:00:07.3]} 57... gxh3 {[%clk 0:00:16.2]}
58. Nf1+ {[%clk 0:00:08]} 58... Kf4 {[%clk 0:00:14.4]} 59. gxh3 {[%clk
0:00:08.4]} 59... Bc2 {[%clk 0:00:14.3]} 60. Kf2 {[%clk 0:00:07.8]} 60... Bxb3
{[%clk 0:00:13.3]} 61. Ne3 {[%clk 0:00:08.5]} 61... Bxa4 {[%clk 0:00:11.7]} 62.
Nd5+ {[%clk 0:00:09.1]} 62... Kf5 {[%clk 0:00:09.3]} 63. Nxb6 {[%clk 0:00:08.9]}
63... Bb3 {[%clk 0:00:09.9]} 64. Ke3 {[%clk 0:00:07.2]} 64... a4 {[%clk
0:00:10.4]} 65. Nd7 {[%clk 0:00:02.5]} 65... a3 {[%clk 0:00:11.1]} 66. Nxc5
{[%clk 0:00:03.2]} 66... Bxc4 {[%clk 0:00:11.4]} 67. Ne4 {[%clk 0:00:02.7]}
67... a2 {[%clk 0:00:11]} 68. Nd6+ {[%clk 0:00:03.4]} 68... Ke6 {[%clk
0:00:11.6]} 69. Nxc4 {[%clk 0:00:04.3]} 69... a1=Q {[%clk 0:00:12.2]} 70. Nd2
{[%clk 0:00:05.2]} 70... Qd4+ {[%clk 0:00:12.4]} 71. Ke2 {[%clk 0:00:05.7]}
71... Kf5 {[%clk 0:00:13.3]} 72. Nf3 {[%clk 0:00:06.6]} 72... Qc4+ {[%clk
0:00:11.9]} 73. Kf2 {[%clk 0:00:07]} 73... Kf4 {[%clk 0:00:11.7]} 74. Ng1 {[%clk
0:00:07.4]} 74... Qc2+ {[%clk 0:00:11]} 75. Kf1 {[%clk 0:00:07]} 75... Ke3
{[%clk 0:00:10.9]} 0-1